Workbook

Sheet BOQ per site
A1: BOQ - Cabling Contract | C1: per site
B3: Cable Type | C3: QTY | D3: UoM | E3: Rate per 100m | F3: Total
B4: Supply Cables:
B5: BVX4QCV | C5: 1000 | D5: m | F5: =C5*E5/100 -> 0
B6: BVX4NCV | C6: 500 | D6: m | F6: =C6*E6/100 -> 0
B7: BVX4LCV | C7: 4000 | D7: m | F7: 0
B8: BVX4KCV | C8: 1000 | D8: m | F8: 0
B9: BVX4HCV | C9: 18000 | D9: m | F9: 0
B10: BVX2HCV | C10: 2000 | D10: m | F10: 0
B11: BVX4FCV | C11: 1000 | D11: m | F11: 0
B12: BVX4ECV | C12: 18000 | D12: m | F12: 0
B13: BVX2ECV | C13: 10000 | D13: m | F13: 0
B14: Control Cables:
B15: BVX37DCV | C15: 20000 | D15: m | F15: 0
B16: BVX19DCV | C16: 18000 | D16: m | F16: 0
B17: BVX12ECV | C17: 10000 | D17: m | F17: 0
B18: BVX12DCV | C18: 19000 | D18: m | F18: 0
B19: BVX7ECV | C19: 3000 | D19: m | F19: 0
B20: BVX7DCV | C20: 18000 | D20: m | F20: 0
B21: BVX4DCV | C21: 22000 | D21: m | F21: 0
B22: Telecomms Cables
B23: TPH50AX | C23: 1000 | D23: m | F23: 0
B24: TPH25AX | C24: 4000 | D24: m | F24: 0
B25: TPH20AX | C25: 2000 | D25: m | F25: 0
B26: TPH10AX | C26: 4000 | D26: m | F26: 0
B27: TPH25AV | C27: 1000 | D27: m | F27: 0
B28: TPH20AV | C28: 1000 | D28: m | F28: 0
B29: TPH10AV | C29: 1000 | D29: m | F29: 0
B30: X21 | C30: 1000 | D30: m | F30: 0
B31: 18Z | C31: 1000 | D31: m | F31: 0
B32: Total | C32: =SUM(C5:C31) -> 181500 | D32: m | F32: =SUM(F5:F31) -> 0

Sheet Overall BOQ
A1: BOQ - Cabling Contract
B3: Cable Type | C3: QTY | D3: UoM | E3: Rate per 100m | F3: Total
B4: Supply Cables:
B5: BVX4QCV | C5: ='BOQ per site'!C5*8 -> 8000 | D5: m | F5: =C5*E5/100 -> 0
B6: BVX4NCV | C6: ='BOQ per site'!C6*8 -> 4000 | D6: m | F6: =C6*E6/100 -> 0
B7: BVX4LCV | C7: ='BOQ per site'!C7*8 -> 32000 | D7: m | F7: 0
B8: BVX4KCV | C8: ='BOQ per site'!C8*8 -> 8000 | D8: m | F8: 0
B9: BVX4HCV | C9: ='BOQ per site'!C9*8 -> 144000 | D9: m | F9: 0
B10: BVX2HCV | C10: ='BOQ per site'!C10*8 -> 16000 | D10: m | F10: 0
B11: BVX4FCV | C11: ='BOQ per site'!C11*8 -> 8000 | D11: m | F11: 0
B12: BVX4ECV | C12: ='BOQ per site'!C12*8 -> 144000 | D12: m | F12: 0
B13: BVX2ECV | C13: ='BOQ per site'!C13*8 -> 80000 | D13: m | F13: 0
B14: Control Cables:
B15: BVX37DCV | C15: ='BOQ per site'!C15*8 -> 160000 | D15: m | F15: 0
B16: BVX19DCV | C16: ='BOQ per site'!C16*8 -> 144000 | D16: m | F16: 0
B17: BVX12ECV | C17: ='BOQ per site'!C17*8 -> 80000 | D17: m | F17: 0
B18: BVX12DCV | C18: ='BOQ per site'!C18*8 -> 152000 | D18: m | F18: 0
B19: BVX7ECV | C19: ='BOQ per site'!C19*8 -> 24000 | D19: m | F19: 0
B20: BVX7DCV | C20: ='BOQ per site'!C20*8 -> 144000 | D20: m | F20: 0
B21: BVX4DCV | C21: ='BOQ per site'!C21*8 -> 176000 | D21: m | F21: 0
B22: Telecomms Cables
B23: TPH50AX | C23: ='BOQ per site'!C23*8 -> 8000 | D23: m | F23: 0
B24: TPH25AX | C24: ='BOQ per site'!C24*8 -> 32000 | D24: m | F24: 0
B25: TPH20AX | C25: ='BOQ per site'!C25*8 -> 16000 | D25: m | F25: 0
B26: TPH10AX | C26: ='BOQ per site'!C26*8 -> 32000 | D26: m | F26: 0
B27: TPH25AV | C27: ='BOQ per site'!C27*8 -> 8000 | D27: m | F27: 0
B28: TPH20AV | C28: ='BOQ per site'!C28*8 -> 8000 | D28: m | F28: 0
B29: TPH10AV | C29: ='BOQ per site'!C29*8 -> 8000 | D29: m | F29: 0
B30: X21 | C30: ='BOQ per site'!C30*8 -> 8000 | D30: m | F30: 0
B31: 18Z | C31: ='BOQ per site'!C31*8 -> 8000 | D31: m | F31: 0
B32: Total | C32: =SUM(C5:C31) -> 1452000 | D32: m | F32: =SUM(F5:F31) -> 0
